{"text_format":"3","workbook":"xlsx","n_sheets":4,"sheets":["Flujo de efectivo","Ingresos mensuales","Gastos mensuales","DATOS DEL GRÁFICO"],"not_rendered":{"charts":1,"defined_names":10},"read":"whole","date_system":"1900"}

{"sheet":"Flujo de efectivo","index":0,"n_rows":9,"n_cols":5,"rows_kept":9}
[null,"Nombre"]
[null,"Presupuesto familiar"]
[null,{"$f":"TEXT(TODAY(),\"mmmm\")","v":"enero"}]
[null,{"$f":"YEAR(TODAY())","v":2017}]
[null,"Nota: La tabla de flujo de efectivo se calcula automáticamente a función de las entradas de las hojas de cálculo Ingresos mensuales y Gastos mensuales."]
[null,"Flujo de efectivo","Estimados","Reales","Desviación"]
[null,"Ingresos totales",{"$f":"Ingresos[[#Totals],[Estimados]]","v":{"v":5700,"d":"5,700"}},{"$f":"Ingresos[[#Totals],[Reales]]","v":{"v":5500,"d":"5,500"}},{"$f":"Ingresos[[#Totals],[Desviación]]","v":-200}]
[null,"Gastos totales",{"$f":"Gasto[[#Totals],[Estimados]]","v":{"v":3603,"d":"3,603"}},{"$f":"Gasto[[#Totals],[Reales]]","v":{"v":3655,"d":"3,655"}},{"$f":"Gasto[[#Totals],[Desviación]]","v":-52}]
[null,"Efectivo total",{"$f":"C7-C8","v":{"v":2097,"d":"2,097"}},{"$f":"D7-D8","v":{"v":1845,"d":"1,845"}},{"$f":"SUBTOTAL(109,Flujo_de_efectivo[Desviación])","v":-252}]

{"sheet":"Ingresos mensuales","index":1,"n_rows":9,"n_cols":5,"rows_kept":9}
[null,{"$f":"Nombre","v":"Nombre"}]
[null,{"$f":"TítuloDelPresupuesto","v":"Presupuesto familiar"}]
[null,{"$f":"Mes","v":"enero"}]
[null,{"$f":"Año","v":2017}]
[null,"Ingresos mensuales","Estimados","Reales","Desviación"]
[null,"Ingreso 1",{"v":4000,"d":"4,000"},{"v":4000,"d":"4,000"},{"$f":"Ingresos[[#This Row],[Reales]]-Ingresos[[#This Row],[Estimados]]","v":0}]
[null,"Ingreso 2",{"v":1400,"d":"1,400"},{"v":1500,"d":"1,500"},{"$f":"Ingresos[[#This Row],[Reales]]-Ingresos[[#This Row],[Estimados]]","v":100}]
[null,"Otros ingresos",300,0,{"$f":"Ingresos[[#This Row],[Reales]]-Ingresos[[#This Row],[Estimados]]","v":-300}]
[null,"Ingresos totales",{"$f":"SUBTOTAL(109,Ingresos[Estimados])","v":{"v":5700,"d":"5,700"}},{"$f":"SUBTOTAL(109,Ingresos[Reales])","v":{"v":5500,"d":"5,500"}},{"$f":"SUBTOTAL(109,Ingresos[Desviación])","v":-200}]

{"sheet":"Gastos mensuales","index":2,"n_rows":26,"n_cols":5,"rows_kept":26}
[null,{"$f":"Nombre","v":"Nombre"}]
[null,{"$f":"TítuloDelPresupuesto","v":"Presupuesto familiar"}]
[null,{"$f":"Mes","v":"enero"}]
[null,{"$f":"Año","v":2017}]
[null,"Gastos mensuales","Estimados","Reales","Desviación"]
[null,"Alojamiento",{"v":1500,"d":"1,500"},{"v":1500,"d":"1,500"},{"$f":"Gasto[[#This Row],[Estimados]]-Gasto[[#This Row],[Reales]]","v":0}]
[null,"Comestibles",250,280,{"$f":"Gasto[[#This Row],[Estimados]]-Gasto[[#This Row],[Reales]]","v":-30}]
[null,"Teléfono",38,38,{"$f":"Gasto[[#This Row],[Estimados]]-Gasto[[#This Row],[Reales]]","v":0}]
[null,"Luz/gas",65,78,{"$f":"Gasto[[#This Row],[Estimados]]-Gasto[[#This Row],[Reales]]","v":-13}]
[null,"Agua/alcantarillado/basuras",25,21,{"$f":"Gasto[[#This Row],[Estimados]]-Gasto[[#This Row],[Reales]]","v":4}]
[null,"Televisión por cable",75,83,{"$f":"Gasto[[#This Row],[Estimados]]-Gasto[[#This Row],[Reales]]","v":-8}]
[null,"Internet",60,60,{"$f":"Gasto[[#This Row],[Estimados]]-Gasto[[#This Row],[Reales]]","v":0}]
[null,"Mantenimiento/reparaciones",0,60,{"$f":"Gasto[[#This Row],[Estimados]]-Gasto[[#This Row],[Reales]]","v":-60}]
[null,"Guardería",180,150,{"$f":"Gasto[[#This Row],[Estimados]]-Gasto[[#This Row],[Reales]]","v":30}]
[null,"Matrícula",250,250,{"$f":"Gasto[[#This Row],[Estimados]]-Gasto[[#This Row],[Reales]]","v":0}]
[null,"Mascotas",75,80,{"$f":"Gasto[[#This Row],[Estimados]]-Gasto[[#This Row],[Reales]]","v":-5}]
[null,"Transporte",280,260,{"$f":"Gasto[[#This Row],[Estimados]]-Gasto[[#This Row],[Reales]]","v":20}]
[null,"Cuidado personal",75,65,{"$f":"Gasto[[#This Row],[Estimados]]-Gasto[[#This Row],[Reales]]","v":10}]
[null,"Seguro",255,255,{"$f":"Gasto[[#This Row],[Estimados]]-Gasto[[#This Row],[Reales]]","v":0}]
[null,"Tarjetas de crédito",100,100,{"$f":"Gasto[[#This Row],[Estimados]]-Gasto[[#This Row],[Reales]]","v":0}]
[null,"Préstamos",0,0,{"$f":"Gasto[[#This Row],[Estimados]]-Gasto[[#This Row],[Reales]]","v":0}]
[null,"Impuestos",0,0,{"$f":"Gasto[[#This Row],[Estimados]]-Gasto[[#This Row],[Reales]]","v":0}]
[null,"Regalos/beneficencia",150,150,{"$f":"Gasto[[#This Row],[Estimados]]-Gasto[[#This Row],[Reales]]","v":0}]
[null,"Ahorro",225,225,{"$f":"Gasto[[#This Row],[Estimados]]-Gasto[[#This Row],[Reales]]","v":0}]
[null,"Otros",0,0,{"$f":"Gasto[[#This Row],[Estimados]]-Gasto[[#This Row],[Reales]]","v":0}]
[null,"Total",{"$f":"SUBTOTAL(109,Gasto[Estimados])","v":{"v":3603,"d":"3,603"}},{"$f":"SUBTOTAL(109,Gasto[Reales])","v":{"v":3655,"d":"3,655"}},{"$f":"SUBTOTAL(109,Gasto[Desviación])","v":-52}]

{"sheet":"DATOS DEL GRÁFICO","index":3,"n_rows":6,"n_cols":4,"rows_kept":6,"hidden":true}
[null,"DATOS DEL GRÁFICO"]
[]
[null,null,"Estimados","Reales"]
[null,"Flujo de efectivo",{"$f":"Flujo_de_efectivo[[#Totals],[Estimados]]","v":2097},{"$f":"Flujo_de_efectivo[[#Totals],[Reales]]","v":1845}]
[null,"Ingresos mensuales",{"$f":"Ingresos[[#Totals],[Estimados]]","v":5700},{"$f":"Ingresos[[#Totals],[Reales]]","v":5500}]
[null,"Gastos mensuales",{"$f":"Gasto[[#Totals],[Estimados]]","v":3603},{"$f":"Gasto[[#Totals],[Reales]]","v":3655}]